[Event "Titled Tuesday Blitz February 15 Early 2022"]
[White "Skuhala, Barbara"]
[Black "Weetik, Vjacheslav"]
[WhiteFideId "14605465"]
[BlackFideId "4153472"]
[WhiteElo "2159"]
[BlackElo "2469"]
[Result "0-1"]
[Round "01"]
[TimeControl "180+1"]
[Date "2022.02.15"]
[WhiteClock "0:00:59"]
[BlackClock "0:00:05"]

1. e4 {[%clk 0:03:00]}  c6 {[%clk 0:02:49]} 2. d4 {[%clk 0:02:59]}  d5 {[%clk 0:02:49]} 3. f3 {[%clk 0:02:58]}  g6 {[%clk 0:02:40]} 4. Nc3 {[%clk 0:02:58]}  Bg7 {[%clk 0:02:39]} 5. Be3 {[%clk 0:02:57]}  Qb6 {[%clk 0:02:38]} 6. Qd2 {[%clk 0:02:55]}  Qxb2 {[%clk 0:02:35]} 7. Rb1 {[%clk 0:02:55]}  Qa3 {[%clk 0:02:35]} 8. e5 {[%clk 0:02:55]}  h5 {[%clk 0:02:26]} 9. Nge2 {[%clk 0:02:54]}  Nh6 {[%clk 0:02:21]} 10. Nc1 {[%clk 0:02:48]}  Nf5 {[%clk 0:02:05]} 11. Bf2 {[%clk 0:02:47]}  Bh6 {[%clk 0:02:03]} 12. f4 {[%clk 0:02:46]}  e6 {[%clk 0:01:55]} 13. Bd3 {[%clk 0:02:46]}  Nd7 {[%clk 0:01:45]} 14. Bxf5 {[%clk 0:02:44]}  exf5 {[%clk 0:01:39]} 15. O-O {[%clk 0:02:41]}  Nf8 {[%clk 0:01:39]} 16. Nb3 {[%clk 0:02:39]}  Ne6 {[%clk 0:01:37]} 17. g3 {[%clk 0:02:38]}  h4 {[%clk 0:01:35]} 18. Kg2 {[%clk 0:02:35]}  b6 {[%clk 0:01:33]} 19. Rfd1 {[%clk 0:02:18]}  g5 {[%clk 0:01:17]} 20. Ne2 {[%clk 0:02:08]}  Ba6 {[%clk 0:01:10]} 21. fxg5 {[%clk 0:02:02]}  Bxg5 {[%clk 0:01:08]} 22. Nf4 {[%clk 0:02:01]}  Bxf4 {[%clk 0:00:50]} 23. gxf4 {[%clk 0:02:01]}  Be2 {[%clk 0:00:50]} 24. Re1 {[%clk 0:01:58]}  Rg8+ {[%clk 0:00:50]} 25. Kh3 {[%clk 0:01:56]}  Bg4+ {[%clk 0:00:46]} 26. Kg2 {[%clk 0:01:54]}  Be2+ {[%clk 0:00:32]} 27. Kh3 {[%clk 0:01:52]}  Rg4 {[%clk 0:00:31]} 28. Be3 {[%clk 0:01:44]}  Bf3 {[%clk 0:00:27]} 29. Qf2 {[%clk 0:01:42]}  Bg2+ {[%clk 0:00:19]} 30. Qxg2 {[%clk 0:01:41]}  Rxg2 {[%clk 0:00:20]} 31. Kxg2 {[%clk 0:01:41]}  Qxa2 {[%clk 0:00:19]} 32. Rec1 {[%clk 0:01:37]}  Qa6 {[%clk 0:00:18]} 33. Re1 {[%clk 0:01:35]}  O-O-O {[%clk 0:00:17]} 34. Kh1 {[%clk 0:01:34]}  Rg8 {[%clk 0:00:15]} 35. Rbc1 {[%clk 0:01:33]}  Qc4 {[%clk 0:00:13]} 36. Nd2 {[%clk 0:01:33]}  Qc3 {[%clk 0:00:13]} 37. Nf3 {[%clk 0:01:27]}  h3 {[%clk 0:00:12]} 38. Ra1 {[%clk 0:01:23]}  Qxc2 {[%clk 0:00:12]} 39. Bd2 {[%clk 0:01:12]}  Nxd4 {[%clk 0:00:05]} 40. Rac1 {[%clk 0:01:08]}  Qd3 {[%clk 0:00:05]} 41. Nxd4 {[%clk 0:01:03]}  Qxd4 {[%clk 0:00:05]} 42. Rxc6+ {[%clk 0:01:03]}  Kb7 {[%clk 0:00:06]} 43. Rc2 {[%clk 0:00:59]}  Qd3 {[%clk 0:00:05]} 0-1


[Site "https://www.chess.com"]

[Event "Titled Tuesday Blitz February 15 Early 2022"]
[White "Stefanov, Plamen"]
[Black "Osmak, Yuliia"]
[WhiteFideId "2900980"]
[BlackFideId "14101602"]
[WhiteElo "2137"]
[BlackElo "2302"]
[Result "0-1"]
[Round "01"]
[TimeControl "180+1"]
[Date "2022.02.15"]
[WhiteClock "0:00:07"]
[BlackClock "0:00:16"]

1. e4 {[%clk 0:02:59]}  c6 {[%clk 0:02:47]} 2. d4 {[%clk 0:02:58]}  d5 {[%clk 0:02:34]} 3. exd5 {[%clk 0:02:58]}  cxd5 {[%clk 0:02:34]} 4. c4 {[%clk 0:02:59]}  Nf6 {[%clk 0:02:32]} 5. Nc3 {[%clk 0:02:59]}  Nc6 {[%clk 0:02:31]} 6. Nf3 {[%clk 0:02:58]}  Be6 {[%clk 0:02:30]} 7. Bg5 {[%clk 0:02:50]}  g6 {[%clk 0:02:24]} 8. Bxf6 {[%clk 0:02:49]}  exf6 {[%clk 0:02:22]} 9. Be2 {[%clk 0:02:46]}  Bg7 {[%clk 0:02:19]} 10. O-O {[%clk 0:02:43]}  O-O {[%clk 0:02:18]} 11. h3 {[%clk 0:02:30]}  f5 {[%clk 0:02:08]} 12. c5 {[%clk 0:02:29]}  f4 {[%clk 0:02:01]} 13. Qd2 {[%clk 0:02:24]}  g5 {[%clk 0:02:00]} 14. b4 {[%clk 0:02:16]}  a6 {[%clk 0:01:51]} 15. b5 {[%clk 0:02:14]}  axb5 {[%clk 0:01:50]} 16. Nxb5 {[%clk 0:02:13]}  Ne7 {[%clk 0:01:42]} 17. Nd6 {[%clk 0:02:12]}  Nf5 {[%clk 0:01:39]} 18. Nxb7 {[%clk 0:02:07]}  Qc7 {[%clk 0:01:38]} 19. Rfb1 {[%clk 0:02:04]}  Rfb8 {[%clk 0:01:32]} 20. Nd6 {[%clk 0:02:03]}  Rxb1+ {[%clk 0:01:29]} 21. Rxb1 {[%clk 0:02:02]}  Nxd6 {[%clk 0:01:28]} 22. cxd6 {[%clk 0:02:02]}  Qxd6 {[%clk 0:01:29]} 23. Nxg5 {[%clk 0:02:02]}  Bf5 {[%clk 0:01:19]} 24. Bd3 {[%clk 0:01:58]}  Qg6 {[%clk 0:01:12]} 25. Qxf4 {[%clk 0:01:37]}  Bxd3 {[%clk 0:01:07]} 26. Rb8+ {[%clk 0:01:36]}  Rxb8 {[%clk 0:01:07]} 27. Qxb8+ {[%clk 0:01:35]}  Bf8 {[%clk 0:01:08]} 28. Nf3 {[%clk 0:01:24]}  Be4 {[%clk 0:01:06]} 29. Qf4 {[%clk 0:01:15]}  Bxf3 {[%clk 0:01:05]} 30. Qxf3 {[%clk 0:01:15]}  Qb1+ {[%clk 0:00:51]} 31. Kh2 {[%clk 0:01:14]}  Bd6+ {[%clk 0:00:51]} 32. g3 {[%clk 0:01:14]}  Qe4 {[%clk 0:00:43]} 33. Qc3 {[%clk 0:01:04]}  Qf5 {[%clk 0:00:35]} 34. Qb2 {[%clk 0:00:53]}  h5 {[%clk 0:00:33]} 35. a4 {[%clk 0:00:50]}  h4 {[%clk 0:00:32]} 36. a5 {[%clk 0:00:50]}  Qf3 {[%clk 0:00:25]} 37. Kg1 {[%clk 0:00:32]}  hxg3 {[%clk 0:00:25]} 38. fxg3 {[%clk 0:00:32]}  Qxg3+ {[%clk 0:00:25]} 39. Qg2 {[%clk 0:00:32]}  Qxg2+ {[%clk 0:00:23]} 40. Kxg2 {[%clk 0:00:32]}  Bb8 {[%clk 0:00:21]} 41. Kf3 {[%clk 0:00:31]}  Ba7 {[%clk 0:00:21]} 42. Ke3 {[%clk 0:00:30]}  Kg7 {[%clk 0:00:21]} 43. a6 {[%clk 0:00:28]}  Kg6 {[%clk 0:00:20]} 44. Kf4 {[%clk 0:00:12]}  Bxd4 {[%clk 0:00:19]} 45. h4 {[%clk 0:00:12]}  Ba7 {[%clk 0:00:18]} 46. Ke5 {[%clk 0:00:12]}  d4 {[%clk 0:00:19]} 47. Ke4 {[%clk 0:00:12]}  f5+ {[%clk 0:00:18]} 48. Kf4 {[%clk 0:00:12]}  d3 {[%clk 0:00:17]} 49. Kf3 {[%clk 0:00:13]}  f4 {[%clk 0:00:17]} 50. Kxf4 {[%clk 0:00:06]}  d2 {[%clk 0:00:16]} 51. Kg4 {[%clk 0:00:07]}  d1=Q+ {[%clk 0:00:16]} 0-1


[Site "https://www.chess.com"]

[Event "Titled Tuesday Blitz February 15 Early 2022"]
[White "Stromboli, Ettore"]
[Black "Dreev, Aleksey"]
[WhiteFideId "813761"]
[BlackFideId "4100107"]
[WhiteElo "2414"]
[BlackElo "2636"]
[Result "0-1"]
[Round "01"]
[TimeControl "180+1"]
[Date "2022.02.15"]
[WhiteClock "0:00:07"]
[BlackClock "0:00:41"]

1. e4 {[%clk 0:02:59]}  c5 {[%clk 0:02:58]} 2. Nf3 {[%clk 0:02:58]}  Nc6 {[%clk 0:02:57]} 3. d4 {[%clk 0:02:58]}  cxd4 {[%clk 0:02:57]} 4. Nxd4 {[%clk 0:02:59]}  Nf6 {[%clk 0:02:57]} 5. Nc3 {[%clk 0:02:59]}  d6 {[%clk 0:02:58]} 6. Bg5 {[%clk 0:02:58]}  Bd7 {[%clk 0:02:58]} 7. Be2 {[%clk 0:02:58]}  Qa5 {[%clk 0:02:50]} 8. Be3 {[%clk 0:02:43]}  Nxe4 {[%clk 0:02:47]} 9. O-O {[%clk 0:02:38]}  Nxc3 {[%clk 0:02:47]} 10. bxc3 {[%clk 0:02:39]}  g6 {[%clk 0:02:37]} 11. Rb1 {[%clk 0:02:36]}  Qc7 {[%clk 0:02:35]} 12. Nb5 {[%clk 0:02:25]}  Qb8 {[%clk 0:02:15]} 13. Bd4 {[%clk 0:02:12]}  e5 {[%clk 0:02:07]} 14. Be3 {[%clk 0:02:01]}  a6 {[%clk 0:01:56]} 15. Na3 {[%clk 0:02:00]}  d5 {[%clk 0:01:56]} 16. Bc1 {[%clk 0:01:31]}  Be6 {[%clk 0:01:49]} 17. c4 {[%clk 0:01:28]}  d4 {[%clk 0:01:46]} 18. Bf3 {[%clk 0:01:28]}  Qc7 {[%clk 0:01:45]} 19. c3 {[%clk 0:01:26]}  Rd8 {[%clk 0:01:34]} 20. Re1 {[%clk 0:01:21]}  Bc5 {[%clk 0:01:29]} 21. Bd5 {[%clk 0:01:09]}  Bxd5 {[%clk 0:01:25]} 22. cxd5 {[%clk 0:01:10]}  Rxd5 {[%clk 0:01:25]} 23. Qb3 {[%clk 0:01:06]}  Rd7 {[%clk 0:01:22]} 24. Bh6 {[%clk 0:01:02]}  Na5 {[%clk 0:01:16]} 25. Qa4 {[%clk 0:00:51]}  b5 {[%clk 0:01:11]} 26. Nxb5 {[%clk 0:00:49]}  axb5 {[%clk 0:01:11]} 27. Rxb5 {[%clk 0:00:50]}  Nb7 {[%clk 0:00:59]} 28. Qa8+ {[%clk 0:00:30]}  Nd8 {[%clk 0:00:59]} 29. Bg7 {[%clk 0:00:28]}  f6 {[%clk 0:00:52]} 30. Bxh8 {[%clk 0:00:20]}  Kf7 {[%clk 0:00:52]} 31. Qa6 {[%clk 0:00:18]}  Ne6 {[%clk 0:00:50]} 32. f4 {[%clk 0:00:15]}  d3+ {[%clk 0:00:48]} 33. Kh1 {[%clk 0:00:13]}  d2 {[%clk 0:00:48]} 34. Rd1 {[%clk 0:00:13]}  e4 {[%clk 0:00:47]} 35. Qa4 {[%clk 0:00:11]}  e3 {[%clk 0:00:44]} 36. Qc4 {[%clk 0:00:11]}  Qxf4 {[%clk 0:00:41]} 37. Rxc5 {[%clk 0:00:06]}  Qxc4 {[%clk 0:00:41]} 38. Rxc4 {[%clk 0:00:07]}  e2 {[%clk 0:00:41]} 0-1


[Site "https://www.chess.com"]

[Event "Titled Tuesday Blitz February 15 Early 2022"]
[White "Szpar, Milosz"]
[Black "Gracia Alvarez, Gerardo Antonio"]
[WhiteFideId "1184989"]
[BlackFideId "5109124"]
[WhiteElo "2447"]
[BlackElo "2139"]
[Result "1-0"]
[Round "01"]
[TimeControl "180+1"]
[Date "2022.02.15"]
[WhiteClock "0:00:04"]
[BlackClock "0:00:02"]

1. e4 {[%clk 0:03:00]}  c5 {[%clk 0:02:59]} 2. Nf3 {[%clk 0:02:58]}  Nc6 {[%clk 0:03:00]} 3. Bb5 {[%clk 0:02:57]}  d6 {[%clk 0:02:58]} 4. d4 {[%clk 0:02:56]}  cxd4 {[%clk 0:02:55]} 5. Qxd4 {[%clk 0:02:56]}  Bd7 {[%clk 0:02:50]} 6. Bxc6 {[%clk 0:02:55]}  Bxc6 {[%clk 0:02:51]} 7. Nc3 {[%clk 0:02:55]}  Nf6 {[%clk 0:02:49]} 8. Bg5 {[%clk 0:02:55]}  e6 {[%clk 0:02:48]} 9. O-O-O {[%clk 0:02:54]}  Be7 {[%clk 0:02:47]} 10. Qd3 {[%clk 0:02:51]}  O-O {[%clk 0:02:38]} 11. Nd4 {[%clk 0:02:51]}  Bd7 {[%clk 0:02:29]} 12. f4 {[%clk 0:02:50]}  Qa5 {[%clk 0:02:20]} 13. Kb1 {[%clk 0:02:45]}  Rfd8 {[%clk 0:02:19]} 14. g4 {[%clk 0:02:37]}  Rac8 {[%clk 0:02:16]} 15. h4 {[%clk 0:02:34]}  Be8 {[%clk 0:02:14]} 16. f5 {[%clk 0:02:31]}  Rxc3 {[%clk 0:01:58]} 17. Qxc3 {[%clk 0:02:26]}  Qxc3 {[%clk 0:01:56]} 18. bxc3 {[%clk 0:02:27]}  e5 {[%clk 0:01:40]} 19. Bxf6 {[%clk 0:01:58]}  Bxf6 {[%clk 0:01:29]} 20. g5 {[%clk 0:01:58]}  Be7 {[%clk 0:01:29]} 21. f6 {[%clk 0:01:58]}  gxf6 {[%clk 0:01:15]} 22. Nf5 {[%clk 0:01:58]}  Bf8 {[%clk 0:01:13]} 23. gxf6 {[%clk 0:01:56]}  Bc6 {[%clk 0:01:12]} 24. Rhg1+ {[%clk 0:01:52]}  Kh8 {[%clk 0:01:12]} 25. Rg4 {[%clk 0:01:52]}  h5 {[%clk 0:01:07]} 26. Rg5 {[%clk 0:01:51]}  Kh7 {[%clk 0:00:51]} 27. Rxh5+ {[%clk 0:01:37]}  Kg6 {[%clk 0:00:50]} 28. Rg5+ {[%clk 0:01:15]}  Kxf6 {[%clk 0:00:50]} 29. Rf1 {[%clk 0:01:03]}  Ke6 {[%clk 0:00:50]} 30. Ng7+ {[%clk 0:00:54]}  Ke7 {[%clk 0:00:43]} 31. Rgf5 {[%clk 0:00:53]}  Bxg7 {[%clk 0:00:38]} 32. Rxf7+ {[%clk 0:00:53]}  Ke6 {[%clk 0:00:38]} 33. Rxg7 {[%clk 0:00:51]}  Bxe4 {[%clk 0:00:39]} 34. Rf2 {[%clk 0:00:40]}  Rh8 {[%clk 0:00:38]} 35. Rh2 {[%clk 0:00:39]}  Bf3 {[%clk 0:00:33]} 36. h5 {[%clk 0:00:33]}  Rh6 {[%clk 0:00:29]} 37. Rh3 {[%clk 0:00:15]}  e4 {[%clk 0:00:29]} 38. Kc1 {[%clk 0:00:14]}  Kf5 {[%clk 0:00:18]} 39. Kd2 {[%clk 0:00:14]}  Kf4 {[%clk 0:00:15]} 40. Rh4+ {[%clk 0:00:14]}  Ke5 {[%clk 0:00:15]} 41. Ke3 {[%clk 0:00:14]}  d5 {[%clk 0:00:10]} 42. Rg5+ {[%clk 0:00:12]}  Ke6 {[%clk 0:00:08]} 43. Rg6+ {[%clk 0:00:08]}  Rxg6 {[%clk 0:00:08]} 44. hxg6 {[%clk 0:00:09]}  Kf6 {[%clk 0:00:08]} 45. Rh7 {[%clk 0:00:08]}  Kxg6 {[%clk 0:00:07]} 46. Rxb7 {[%clk 0:00:08]}  Bd1 {[%clk 0:00:08]} 47. Rxa7 {[%clk 0:00:06]}  Bxc2 {[%clk 0:00:09]} 48. Ra5 {[%clk 0:00:06]}  Bb1 {[%clk 0:00:08]} 49. Rxd5 {[%clk 0:00:04]}  Bxa2 {[%clk 0:00:08]} 50. Rd6+ {[%clk 0:00:04]}  Kf5 {[%clk 0:00:08]} 51. Rd4 {[%clk 0:00:04]}  Bb1 {[%clk 0:00:07]} 52. Rb4 {[%clk 0:00:05]}  Bd3 {[%clk 0:00:07]} 53. Rd4 {[%clk 0:00:05]}  Ke5 {[%clk 0:00:06]} 54. c4 {[%clk 0:00:05]}  Bc2 {[%clk 0:00:04]} 55. c5 {[%clk 0:00:05]}  Ke6 {[%clk 0:00:02]} 56. c6 {[%clk 0:00:04]}  Ba4 {[%clk 0:00:03]} 57. Rxa4 {[%clk 0:00:03]}  Kd6 {[%clk 0:00:03]} 58. Rc4 {[%clk 0:00:04]}  Kc7 {[%clk 0:00:02]} 59. Kxe4 {[%clk 0:00:04]} 1-0


[Site "https://www.chess.com"]

[Event "Titled Tuesday Blitz February 15 Early 2022"]
[White "Tarhan, Adar"]
[Black "Dew, Brian"]
[WhiteFideId "34544712"]
[BlackFideId "6000495"]
[WhiteElo "1802"]
[BlackElo "2118"]
[Result "1-0"]
[Round "01"]
[TimeControl "180+1"]
[Date "2022.02.15"]
[WhiteClock "0:00:27"]
[BlackClock "0:00:26"]

1. e4 {[%clk 0:02:48]}  c6 {[%clk 0:03:00]} 2. d4 {[%clk 0:02:47]}  d5 {[%clk 0:03:00]} 3. Nc3 {[%clk 0:02:47]}  dxe4 {[%clk 0:03:00]} 4. Nxe4 {[%clk 0:02:48]}  Bf5 {[%clk 0:03:00]} 5. Ng3 {[%clk 0:02:49]}  Bg6 {[%clk 0:03:00]} 6. h4 {[%clk 0:02:49]}  h6 {[%clk 0:03:01]} 7. Nf3 {[%clk 0:02:48]}  Nd7 {[%clk 0:03:00]} 8. h5 {[%clk 0:02:48]}  Bh7 {[%clk 0:03:00]} 9. Bd3 {[%clk 0:02:49]}  Bxd3 {[%clk 0:03:01]} 10. Qxd3 {[%clk 0:02:50]}  e6 {[%clk 0:03:01]} 11. c3 {[%clk 0:02:50]}  Qc7 {[%clk 0:03:00]} 12. Bd2 {[%clk 0:02:48]}  Ngf6 {[%clk 0:03:00]} 13. O-O-O {[%clk 0:02:48]}  Bd6 {[%clk 0:03:00]} 14. Ne4 {[%clk 0:02:48]}  Nxe4 {[%clk 0:02:59]} 15. Qxe4 {[%clk 0:02:49]}  Nf6 {[%clk 0:02:59]} 16. Qe2 {[%clk 0:02:47]}  O-O-O {[%clk 0:02:57]} 17. Kb1 {[%clk 0:02:43]}  c5 {[%clk 0:02:53]} 18. c4 {[%clk 0:02:38]}  cxd4 {[%clk 0:02:52]} 19. Nxd4 {[%clk 0:02:36]}  a6 {[%clk 0:02:52]} 20. Bc3 {[%clk 0:02:31]}  Kb8 {[%clk 0:02:44]} 21. Nb3 {[%clk 0:02:22]}  Ka8 {[%clk 0:02:38]} 22. Ba5 {[%clk 0:02:06]}  Qc6 {[%clk 0:01:32]} 23. Bxd8 {[%clk 0:01:53]}  Rxd8 {[%clk 0:01:33]} 24. c5 {[%clk 0:01:45]}  Be7 {[%clk 0:01:33]} 25. Rxd8+ {[%clk 0:01:46]}  Bxd8 {[%clk 0:01:34]} 26. f3 {[%clk 0:01:47]}  Bc7 {[%clk 0:01:31]} 27. a3 {[%clk 0:01:38]}  Qd5 {[%clk 0:01:29]} 28. Ka2 {[%clk 0:01:35]}  Nxh5 {[%clk 0:01:29]} 29. Rd1 {[%clk 0:01:31]}  Qc6 {[%clk 0:01:23]} 30. Qc4 {[%clk 0:01:25]}  Nf6 {[%clk 0:01:22]} 31. Nd4 {[%clk 0:01:24]}  Qe8 {[%clk 0:01:15]} 32. c6 {[%clk 0:01:23]}  b5 {[%clk 0:01:15]} 33. Qc5 {[%clk 0:00:37]}  Nd5 {[%clk 0:01:15]} 34. Re1 {[%clk 0:00:32]}  Bb6 {[%clk 0:01:14]} 35. Qxd5 {[%clk 0:00:32]}  Ka7 {[%clk 0:00:29]} 36. Qd7+ {[%clk 0:00:28]}  Qxd7 {[%clk 0:00:28]} 37. cxd7 {[%clk 0:00:29]}  Kb7 {[%clk 0:00:26]} 38. Rc1 {[%clk 0:00:27]} 1-0


[Site "https://www.chess.com"]

[Event "Titled Tuesday Blitz February 15 Early 2022"]
[White "Ter-Sahakyan, Samvel"]
[Black "Popadic, Dragan"]
[WhiteFideId "13302531"]
[BlackFideId "913650"]
[WhiteElo "2592"]
[BlackElo "2199"]
[Result "1-0"]
[Round "01"]
[TimeControl "180+1"]
[Date "2022.02.15"]
[WhiteClock "0:00:09"]
[BlackClock "0:00:09"]

1. d4 {[%clk 0:02:58]}  Nf6 {[%clk 0:02:59]} 2. Bg5 {[%clk 0:02:56]}  d5 {[%clk 0:02:58]} 3. Nd2 {[%clk 0:02:53]}  e6 {[%clk 0:02:43]} 4. e3 {[%clk 0:02:52]}  c5 {[%clk 0:02:43]} 5. c3 {[%clk 0:02:50]}  Nc6 {[%clk 0:02:42]} 6. Bd3 {[%clk 0:02:44]}  Be7 {[%clk 0:02:41]} 7. Ngf3 {[%clk 0:02:35]}  b6 {[%clk 0:02:35]} 8. O-O {[%clk 0:02:34]}  O-O {[%clk 0:02:34]} 9. Qe2 {[%clk 0:02:31]}  a5 {[%clk 0:02:32]} 10. a3 {[%clk 0:02:27]}  Bb7 {[%clk 0:02:30]} 11. Rad1 {[%clk 0:02:26]}  a4 {[%clk 0:02:27]} 12. Ne5 {[%clk 0:02:23]}  Nxe5 {[%clk 0:02:22]} 13. dxe5 {[%clk 0:02:23]}  Nd7 {[%clk 0:02:22]} 14. Bf4 {[%clk 0:02:11]}  f5 {[%clk 0:02:13]} 15. exf6 {[%clk 0:02:07]}  Bxf6 {[%clk 0:02:13]} 16. Bg3 {[%clk 0:01:54]}  Qe8 {[%clk 0:02:10]} 17. e4 {[%clk 0:01:51]}  c4 {[%clk 0:01:39]} 18. Bc2 {[%clk 0:01:48]}  Nc5 {[%clk 0:01:38]} 19. Rfe1 {[%clk 0:01:33]}  Qf7 {[%clk 0:01:38]} 20. e5 {[%clk 0:01:16]}  Be7 {[%clk 0:01:25]} 21. Nf3 {[%clk 0:01:16]}  Rad8 {[%clk 0:01:12]} 22. Nd4 {[%clk 0:01:12]}  Bg5 {[%clk 0:01:01]} 23. f4 {[%clk 0:01:08]}  Bh6 {[%clk 0:00:59]} 24. f5 {[%clk 0:01:08]}  exf5 {[%clk 0:00:57]} 25. e6 {[%clk 0:01:08]}  Qe7 {[%clk 0:00:52]} 26. Nxf5 {[%clk 0:01:08]}  Rxf5 {[%clk 0:00:51]} 27. Bxf5 {[%clk 0:01:09]}  b5 {[%clk 0:00:46]} 28. Qg4 {[%clk 0:01:02]}  Rf8 {[%clk 0:00:43]} 29. Bh4 {[%clk 0:01:01]}  Qd6 {[%clk 0:00:37]} 30. e7 {[%clk 0:01:00]}  Re8 {[%clk 0:00:37]} 31. Be6+ {[%clk 0:00:40]}  Nxe6 {[%clk 0:00:34]} 32. Qxe6+ {[%clk 0:00:40]}  Qxe6 {[%clk 0:00:34]} 33. Rxe6 {[%clk 0:00:41]}  Kf7 {[%clk 0:00:32]} 34. Rb6 {[%clk 0:00:35]}  Be3+ {[%clk 0:00:31]} 35. Bf2 {[%clk 0:00:35]}  Bxb6 {[%clk 0:00:31]} 36. Bxb6 {[%clk 0:00:35]}  Rxe7 {[%clk 0:00:31]} 37. Rd2 {[%clk 0:00:34]}  Re6 {[%clk 0:00:30]} 38. Bd4 {[%clk 0:00:33]}  Re4 {[%clk 0:00:28]} 39. Rf2+ {[%clk 0:00:33]}  Ke8 {[%clk 0:00:28]} 40. h3 {[%clk 0:00:30]}  Bc8 {[%clk 0:00:27]} 41. Bxg7 {[%clk 0:00:29]}  Be6 {[%clk 0:00:24]} 42. Bd4 {[%clk 0:00:28]}  Bf7 {[%clk 0:00:21]} 43. Kh2 {[%clk 0:00:27]}  Bg6 {[%clk 0:00:20]} 44. g4 {[%clk 0:00:26]}  Re1 {[%clk 0:00:19]} 45. Kg3 {[%clk 0:00:26]}  Be4 {[%clk 0:00:19]} 46. h4 {[%clk 0:00:18]}  Rg1+ {[%clk 0:00:17]} 47. Kf4 {[%clk 0:00:18]}  Rh1 {[%clk 0:00:18]} 48. Kg5 {[%clk 0:00:18]}  Rg1 {[%clk 0:00:15]} 49. h5 {[%clk 0:00:17]}  Rg2 {[%clk 0:00:13]} 50. Rxg2 {[%clk 0:00:16]}  Bxg2 {[%clk 0:00:13]} 51. Kh6 {[%clk 0:00:16]}  Be4 {[%clk 0:00:13]} 52. Kg7 {[%clk 0:00:15]}  Bd3 {[%clk 0:00:12]} 53. g5 {[%clk 0:00:15]}  Be4 {[%clk 0:00:12]} 54. Be3 {[%clk 0:00:11]}  Bd3 {[%clk 0:00:11]} 55. g6 {[%clk 0:00:12]}  hxg6 {[%clk 0:00:10]} 56. h6 {[%clk 0:00:12]}  g5 {[%clk 0:00:10]} 57. Bxg5 {[%clk 0:00:12]}  Kd7 {[%clk 0:00:09]} 58. h7 {[%clk 0:00:13]}  Bxh7 {[%clk 0:00:08]} 59. Kxh7 {[%clk 0:00:13]}  d4 {[%clk 0:00:09]} 60. cxd4 {[%clk 0:00:11]}  Ke6 {[%clk 0:00:09]} 61. Bd2 {[%clk 0:00:08]}  Kd5 {[%clk 0:00:09]} 62. Bc3 {[%clk 0:00:08]}  Ke4 {[%clk 0:00:09]} 63. Kg6 {[%clk 0:00:09]} 1-0


[Site "https://www.chess.com"]

[Event "Titled Tuesday Blitz February 15 Early 2022"]
[White "Terry, Renato"]
[Black "Gatterer, Florian"]
[WhiteFideId "3803457"]
[BlackFideId "811688"]
[WhiteElo "2577"]
[BlackElo "2218"]
[Result "1-0"]
[Round "01"]
[TimeControl "180+1"]
[Date "2022.02.15"]
[WhiteClock "0:00:14"]
[BlackClock "0:00:07"]

1. e4 {[%clk 0:02:58]}  c6 {[%clk 0:02:53]} 2. Nf3 {[%clk 0:02:56]}  d5 {[%clk 0:02:53]} 3. exd5 {[%clk 0:02:56]}  cxd5 {[%clk 0:02:53]} 4. Ne5 {[%clk 0:02:56]}  e6 {[%clk 0:02:53]} 5. d4 {[%clk 0:02:56]}  Nc6 {[%clk 0:02:52]} 6. c3 {[%clk 0:02:55]}  Nge7 {[%clk 0:02:50]} 7. Bd3 {[%clk 0:02:52]}  Nxe5 {[%clk 0:02:50]} 8. dxe5 {[%clk 0:02:52]}  Nc6 {[%clk 0:02:50]} 9. Bf4 {[%clk 0:02:46]}  Be7 {[%clk 0:02:42]} 10. Qg4 {[%clk 0:02:43]}  g6 {[%clk 0:02:39]} 11. Qe2 {[%clk 0:02:35]}  Bg5 {[%clk 0:02:34]} 12. Bg3 {[%clk 0:02:33]}  h5 {[%clk 0:02:33]} 13. h3 {[%clk 0:02:28]}  Bd7 {[%clk 0:02:32]} 14. Nd2 {[%clk 0:02:27]}  Bh4 {[%clk 0:02:27]} 15. Bh2 {[%clk 0:02:25]}  a6 {[%clk 0:02:22]} 16. O-O {[%clk 0:02:18]}  Rc8 {[%clk 0:02:19]} 17. Kh1 {[%clk 0:01:55]}  Na5 {[%clk 0:02:13]} 18. f4 {[%clk 0:01:41]}  Be7 {[%clk 0:02:12]} 19. Nf3 {[%clk 0:01:38]}  Qc7 {[%clk 0:02:07]} 20. Nd4 {[%clk 0:01:34]}  Nc6 {[%clk 0:02:06]} 21. Nf3 {[%clk 0:01:32]}  Na5 {[%clk 0:02:00]} 22. Rad1 {[%clk 0:01:31]}  Nc4 {[%clk 0:02:00]} 23. Nd4 {[%clk 0:01:30]}  Qb6 {[%clk 0:01:59]} 24. b3 {[%clk 0:01:29]}  Na5 {[%clk 0:01:58]} 25. Rc1 {[%clk 0:01:29]}  Nc6 {[%clk 0:01:58]} 26. Nf3 {[%clk 0:01:29]}  Na7 {[%clk 0:01:52]} 27. c4 {[%clk 0:01:15]}  dxc4 {[%clk 0:01:44]} 28. Bxc4 {[%clk 0:01:10]}  O-O {[%clk 0:01:39]} 29. Nd2 {[%clk 0:00:56]}  Bb5 {[%clk 0:01:34]} 30. Ne4 {[%clk 0:00:43]}  Bxc4 {[%clk 0:01:27]} 31. bxc4 {[%clk 0:00:44]}  Rcd8 {[%clk 0:01:11]} 32. Bg1 {[%clk 0:00:44]}  Rd4 {[%clk 0:00:54]} 33. Rcd1 {[%clk 0:00:37]}  Rfd8 {[%clk 0:00:53]} 34. Rxd4 {[%clk 0:00:36]}  Rxd4 {[%clk 0:00:52]} 35. Bxd4 {[%clk 0:00:34]}  Qxd4 {[%clk 0:00:52]} 36. Rd1 {[%clk 0:00:35]}  Qb6 {[%clk 0:00:41]} 37. Qf2 {[%clk 0:00:20]}  Qc6 {[%clk 0:00:35]} 38. Nf6+ {[%clk 0:00:17]}  Bxf6 {[%clk 0:00:33]} 39. exf6 {[%clk 0:00:18]}  b6 {[%clk 0:00:34]} 40. Rd8+ {[%clk 0:00:17]}  Kh7 {[%clk 0:00:32]} 41. Qd4 {[%clk 0:00:17]}  Qc7 {[%clk 0:00:19]} 42. Qd7 {[%clk 0:00:16]}  Qxd7 {[%clk 0:00:18]} 43. Rxd7 {[%clk 0:00:17]}  Nc6 {[%clk 0:00:19]} 44. Rxf7+ {[%clk 0:00:17]}  Kg8 {[%clk 0:00:19]} 45. Rb7 {[%clk 0:00:16]}  Na5 {[%clk 0:00:18]} 46. Rxb6 {[%clk 0:00:16]}  Nxc4 {[%clk 0:00:18]} 47. Rxa6 {[%clk 0:00:16]}  Kf7 {[%clk 0:00:18]} 48. a4 {[%clk 0:00:15]}  Kxf6 {[%clk 0:00:19]} 49. Rc6 {[%clk 0:00:15]}  Na5 {[%clk 0:00:18]} 50. Rc5 {[%clk 0:00:16]}  Nb7 {[%clk 0:00:18]} 51. Rc7 {[%clk 0:00:16]}  Na5 {[%clk 0:00:18]} 52. g4 {[%clk 0:00:14]}  hxg4 {[%clk 0:00:17]} 53. hxg4 {[%clk 0:00:15]}  e5 {[%clk 0:00:16]} 54. Rc5 {[%clk 0:00:15]}  Nb3 {[%clk 0:00:13]} 55. Rxe5 {[%clk 0:00:15]}  Nd4 {[%clk 0:00:10]} 56. a5 {[%clk 0:00:14]}  Nf3 {[%clk 0:00:10]} 57. a6 {[%clk 0:00:13]}  g5 {[%clk 0:00:10]} 58. Rf5+ {[%clk 0:00:12]}  Kg6 {[%clk 0:00:10]} 59. a7 {[%clk 0:00:13]}  gxf4 {[%clk 0:00:08]} 60. a8=Q {[%clk 0:00:14]}  Nd4 {[%clk 0:00:08]} 61. Qg8+ {[%clk 0:00:13]}  Kh6 {[%clk 0:00:07]} 62. Rh5# {[%clk 0:00:14]} 1-0


[Site "https://www.chess.com"]